[Event "Live Chess"]
[Site "Chess.com"]
[Date "2023.05.21"]
[Round "-"]
[White "FailsGambits"]
[Black "Leonid_Starozhilov"]
[Result "0-1"]
[WhiteElo "1330"]
[BlackElo "2623"]
[TimeControl "300"]
[EndTime "6:51:00 PDT"]
[Termination "Leonid_Starozhilov won by resignation"]

1. e4 {[%clk 0:04:58.6]} 1... g6 {[%clk 0:04:58.4]} 2. d4 {[%clk 0:04:57.1]}
2... Bg7 {[%clk 0:04:57.6]} 3. c4 {[%clk 0:04:55.9]} 3... d6 {[%clk 0:04:56.2]}
4. Be3 {[%clk 0:04:53.9]} 4... c5 {[%clk 0:04:51.7]} 5. Nc3 {[%clk 0:04:40]}
5... cxd4 {[%clk 0:04:49.6]} 6. Bxd4 {[%clk 0:04:39.9]} 6... Nf6 {[%clk
0:04:49]} 7. Bd3 {[%clk 0:04:25]} 7... Nc6 {[%clk 0:04:48.9]} 8. Be3 {[%clk
0:04:20.7]} 8... Ng4 {[%clk 0:04:47.4]} 9. Bd2 {[%clk 0:04:10.7]} 9... Qb6
{[%clk 0:04:37.3]} 10. Nh3 {[%clk 0:03:48.9]} 10... Nge5 {[%clk 0:04:30.7]} 11.
Qc2 {[%clk 0:03:37.1]} 11... Bxh3 {[%clk 0:04:27.2]} 12. gxh3 {[%clk 0:03:34.6]}
12... Qxb2 {[%clk 0:04:26.4]} 13. Qxb2 {[%clk 0:03:21.2]} 13... Nxd3+ {[%clk
0:04:21.7]} 0-1

[Event "Live Chess"]
[Site "Chess.com"]
[Date "2023.05.21"]
[Round "-"]
[White "wadsy27"]
[Black "Conradical12"]
[Result "1-0"]
[WhiteElo "2554"]
[BlackElo "1566"]
[TimeControl "300"]
[EndTime "6:51:02 PDT"]
[Termination "wadsy27 won by resignation"]

1. d4 {[%clk 0:04:58.9]} 1... d5 {[%clk 0:04:55.7]} 2. c4 {[%clk 0:04:57.6]}
2... c6 {[%clk 0:04:53.8]} 3. Nf3 {[%clk 0:04:56.5]} 3... Nf6 {[%clk 0:04:51]}
4. cxd5 {[%clk 0:04:56]} 4... cxd5 {[%clk 0:04:49.4]} 5. Nc3 {[%clk 0:04:55.7]}
5... Nc6 {[%clk 0:04:48.4]} 6. Bf4 {[%clk 0:04:54.8]} 6... Bf5 {[%clk
0:04:47.5]} 7. Qb3 {[%clk 0:04:53.2]} 7... Qb6 {[%clk 0:04:46.6]} 8. Qxb6 {[%clk
0:04:50.9]} 8... axb6 {[%clk 0:04:45.7]} 9. a3 {[%clk 0:04:50.6]} 9... e6 {[%clk
0:04:42.5]} 10. Rc1 {[%clk 0:04:49.3]} 10... Be7 {[%clk 0:04:36.7]} 11. e3
{[%clk 0:04:48.3]} 11... O-O {[%clk 0:04:36.1]} 12. h3 {[%clk 0:04:47.7]} 12...
h6 {[%clk 0:04:32.7]} 13. Be2 {[%clk 0:04:38.7]} 13... Ne4 {[%clk 0:04:26.3]}
14. Nxe4 {[%clk 0:04:34.1]} 14... Bxe4 {[%clk 0:04:23.3]} 15. O-O {[%clk
0:04:31.6]} 15... Rad8 {[%clk 0:04:18.7]} 16. Nd2 {[%clk 0:04:29.2]} 16... f6
{[%clk 0:04:16.4]} 17. Bc7 {[%clk 0:04:27.9]} 17... Rd7 {[%clk 0:04:14]} 18.
Bxb6 {[%clk 0:04:27.2]} 18... Bd6 {[%clk 0:04:11.9]} 19. Nxe4 {[%clk 0:04:25.5]}
19... dxe4 {[%clk 0:04:10.3]} 20. Bc5 {[%clk 0:04:25.1]} 20... Bxc5 {[%clk
0:04:08.4]} 21. Rxc5 {[%clk 0:04:25]} 21... f5 {[%clk 0:04:05.6]} 22. Rfc1
{[%clk 0:04:23.6]} 22... f4 {[%clk 0:04:03.8]} 23. Bb5 {[%clk 0:04:22.4]} 23...
Rc8 {[%clk 0:03:59.1]} 24. Bxc6 {[%clk 0:04:21.2]} 24... bxc6 {[%clk 0:03:56.5]}
25. Rxc6 {[%clk 0:04:21.1]} 25... Rxc6 {[%clk 0:03:55.8]} 26. Rxc6 {[%clk
0:04:20.6]} 26... Rb7 {[%clk 0:03:55.1]} 27. Rxe6 {[%clk 0:04:19.2]} 27... Rxb2
{[%clk 0:03:54.5]} 28. Rxe4 {[%clk 0:04:17.5]} 28... fxe3 {[%clk 0:03:53.5]} 29.
fxe3 {[%clk 0:04:16.2]} 1-0

[Event "Live Chess"]
[Site "Chess.com"]
[Date "2023.05.21"]
[Round "-"]
[White "CheckThis4"]
[Black "DRS44"]
[Result "1-0"]
[WhiteElo "2524"]
[BlackElo "1322"]
[TimeControl "300"]
[EndTime "6:51:11 PDT"]
[Termination "CheckThis4 won by resignation"]

1. d4 {[%clk 0:04:58.5]} 1... d5 {[%clk 0:04:48.7]} 2. Nc3 {[%clk 0:04:58.4]}
2... Nf6 {[%clk 0:04:43.3]} 3. e4 {[%clk 0:04:57.4]} 3... dxe4 {[%clk
0:04:25.3]} 4. f3 {[%clk 0:04:55.6]} 4... exf3 {[%clk 0:04:20]} 5. Nxf3 {[%clk
0:04:53.7]} 5... Bg4 {[%clk 0:04:15.1]} 6. h3 {[%clk 0:04:52.4]} 6... Bxf3
{[%clk 0:04:05.1]} 7. Qxf3 {[%clk 0:04:50.3]} 7... Nc6 {[%clk 0:04:04.1]} 8. Bb5
{[%clk 0:04:45.7]} 8... e6 {[%clk 0:03:58.8]} 9. Bxc6+ {[%clk 0:04:38.1]} 9...
bxc6 {[%clk 0:03:31.3]} 10. Qxc6+ {[%clk 0:04:38]} 10... Ke7 {[%clk 0:03:13]}
11. b3 {[%clk 0:04:26]} 11... Rb8 {[%clk 0:02:56.3]} 12. Ba3+ {[%clk 0:04:23.3]}
1-0

[Event "Live Chess"]
[Site "Chess.com"]
[Date "2023.05.21"]
[Round "-"]
[White "ChessTWSS"]
[Black "wot-not"]
[Result "1-0"]
[WhiteElo "1647"]
[BlackElo "1542"]
[TimeControl "300"]
[EndTime "6:51:12 PDT"]
[Termination "ChessTWSS won by checkmate"]

1. d4 {[%clk 0:04:58.2]} 1... Nf6 {[%clk 0:04:58.3]} 2. Bf4 {[%clk 0:04:54.4]}
2... d6 {[%clk 0:04:56.7]} 3. Nf3 {[%clk 0:04:50.1]} 3... Bg4 {[%clk 0:04:55.9]}
4. e3 {[%clk 0:04:45.1]} 4... Nbd7 {[%clk 0:04:53.3]} 5. c3 {[%clk 0:04:41.3]}
5... e5 {[%clk 0:04:51.8]} 6. Bg5 {[%clk 0:04:34.2]} 6... e4 {[%clk 0:04:46.8]}
7. h3 {[%clk 0:04:26.5]} 7... Bh5 {[%clk 0:04:27.6]} 8. g4 {[%clk 0:04:22]} 8...
exf3 {[%clk 0:04:22.5]} 9. gxh5 {[%clk 0:04:16.6]} 9... h6 {[%clk 0:04:19.5]}
10. Bxf6 {[%clk 0:04:13.1]} 10... Qxf6 {[%clk 0:04:18.5]} 11. Bd3 {[%clk
0:04:06]} 11... c5 {[%clk 0:04:13.9]} 12. Nd2 {[%clk 0:04:00]} 12... cxd4 {[%clk
0:04:01.3]} 13. cxd4 {[%clk 0:03:55.4]} 13... Be7 {[%clk 0:03:49.7]} 14. Qxf3
{[%clk 0:03:49.2]} 14... Qg5 {[%clk 0:03:42.1]} 15. Ne4 {[%clk 0:03:41.6]} 15...
Qa5+ {[%clk 0:03:38.4]} 16. Nc3 {[%clk 0:03:36]} 16... O-O {[%clk 0:03:34.7]}
17. Qe4 {[%clk 0:03:26.3]} 17... f5 {[%clk 0:03:30.1]} 18. Qxe7 {[%clk
0:03:21.5]} 18... Nf6 {[%clk 0:03:18.2]} 19. Qxd6 {[%clk 0:03:11.4]} 19... Rad8
{[%clk 0:03:01.7]} 20. b4 {[%clk 0:02:59.6]} 20... Qa3 {[%clk 0:02:53.2]} 21.
Qe6+ {[%clk 0:02:50.9]} 21... Kh8 {[%clk 0:02:50.3]} 22. Qb3 {[%clk 0:02:43.4]}
22... Qxb3 {[%clk 0:02:37.1]} 23. axb3 {[%clk 0:02:40.5]} 23... f4 {[%clk
0:02:36.7]} 24. exf4 {[%clk 0:02:31.3]} 24... Rxd4 {[%clk 0:02:31.8]} 25. Rd1
{[%clk 0:02:07.8]} 25... Nxh5 {[%clk 0:02:15]} 26. f5 {[%clk 0:01:56.4]} 26...
Rxb4 {[%clk 0:02:01.8]} 27. Bc4 {[%clk 0:01:49.6]} 27... a6 {[%clk 0:01:42.2]}
28. Nd5 {[%clk 0:01:45.2]} 28... Rxc4 {[%clk 0:01:36.3]} 29. bxc4 {[%clk
0:01:40.6]} 29... Rxf5 {[%clk 0:01:35.3]} 30. Rg1 {[%clk 0:01:32.9]} 30... Re5+
{[%clk 0:01:28.2]} 31. Ne3 {[%clk 0:01:27]} 31... Nf4 {[%clk 0:01:20.6]} 32.
Rd8+ {[%clk 0:01:17.9]} 32... Kh7 {[%clk 0:01:19.1]} 33. Rd7 {[%clk 0:01:12.6]}
33... b5 {[%clk 0:01:03.3]} 34. Rdxg7+ {[%clk 0:01:04.7]} 34... Kh8 {[%clk
0:01:01]} 35. Rg8+ {[%clk 0:01:01.5]} 35... Kh7 {[%clk 0:00:59.7]} 36. R1g7#
{[%clk 0:00:59.8]} 1-0

[Event "Live Chess"]
[Site "Chess.com"]
[Date "2023.05.21"]
[Round "-"]
[White "Ian-Morley"]
[Black "Cimon"]
[Result "0-1"]
[WhiteElo "1087"]
[BlackElo "1843"]
[TimeControl "300"]
[EndTime "6:51:20 PDT"]
[Termination "Cimon won by resignation"]

1. e4 {[%clk 0:04:58.3]} 1... c5 {[%clk 0:04:58.6]} 2. Nf3 {[%clk 0:04:57.1]}
2... Nc6 {[%clk 0:04:57.4]} 3. Bb5 {[%clk 0:04:56.6]} 3... g6 {[%clk 0:04:56]}
4. Bxc6 {[%clk 0:04:56.1]} 4... dxc6 {[%clk 0:04:54.5]} 5. O-O {[%clk
0:04:55.9]} 5... Bg7 {[%clk 0:04:53]} 6. Re1 {[%clk 0:04:55.6]} 6... Nf6 {[%clk
0:04:51.5]} 7. c3 {[%clk 0:04:55.2]} 7... O-O {[%clk 0:04:49.3]} 8. d4 {[%clk
0:04:54.7]} 8... cxd4 {[%clk 0:04:47.7]} 9. cxd4 {[%clk 0:04:54.3]} 9... Bg4
{[%clk 0:04:44.4]} 10. Nc3 {[%clk 0:04:53.6]} 10... Bxf3 {[%clk 0:04:39.7]} 11.
Qxf3 {[%clk 0:04:52.2]} 11... Qxd4 {[%clk 0:04:36.3]} 12. Be3 {[%clk 0:04:50.2]}
12... Qb4 {[%clk 0:04:30.9]} 13. Rab1 {[%clk 0:04:43.9]} 13... a5 {[%clk
0:04:25.3]} 14. a3 {[%clk 0:04:42.2]} 14... Qb3 {[%clk 0:04:22]} 15. e5 {[%clk
0:04:38.6]} 15... Nd5 {[%clk 0:04:14.3]} 16. Nxd5 {[%clk 0:04:37.4]} 16... cxd5
{[%clk 0:04:13.2]} 17. Bd4 {[%clk 0:04:17.4]} 17... Qxf3 {[%clk 0:04:10.5]} 18.
gxf3 {[%clk 0:04:16.1]} 18... b5 {[%clk 0:04:07.3]} 19. Kg2 {[%clk 0:03:27.9]}
19... e6 {[%clk 0:03:58.3]} 20. f4 {[%clk 0:03:26.5]} 20... Rfc8 {[%clk
0:03:56.1]} 21. Rbc1 {[%clk 0:03:24.2]} 21... Bf8 {[%clk 0:03:48]} 22. Rxc8
{[%clk 0:03:19.1]} 22... Rxc8 {[%clk 0:03:46.6]} 23. Bc3 {[%clk 0:03:11.9]}
23... b4 {[%clk 0:03:38]} 24. axb4 {[%clk 0:03:10.4]} 24... Bxb4 {[%clk
0:03:35.4]} 25. Bxb4 {[%clk 0:03:09.3]} 25... axb4 {[%clk 0:03:34.1]} 26. Re2
{[%clk 0:03:06.9]} 26... Rc4 {[%clk 0:03:26.8]} 27. Kf3 {[%clk 0:02:58.2]} 27...
Kf8 {[%clk 0:03:24.7]} 28. Kg4 {[%clk 0:02:56.9]} 28... h6 {[%clk 0:03:22.4]}
29. h4 {[%clk 0:02:55.5]} 29... Ke7 {[%clk 0:03:19.7]} 30. h5 {[%clk 0:02:54.4]}
30... Kd7 {[%clk 0:02:48.7]} 31. hxg6 {[%clk 0:02:50.2]} 31... fxg6 {[%clk
0:02:47.7]} 32. f3 {[%clk 0:02:45.5]} 32... g5 {[%clk 0:02:46]} 33. Kh5 {[%clk
0:02:42.2]} 33... Rxf4 {[%clk 0:02:44.2]} 34. Kxh6 {[%clk 0:02:41.5]} 34... Rxf3
{[%clk 0:02:32.6]} 35. Kxg5 {[%clk 0:02:40.3]} 35... Kc6 {[%clk 0:02:31]} 36.
Rc2+ {[%clk 0:02:38.7]} 36... Kb5 {[%clk 0:02:29.3]} 37. Rc8 {[%clk 0:02:34.7]}
37... d4 {[%clk 0:02:23.4]} 38. Re8 {[%clk 0:02:33.5]} 38... d3 {[%clk
0:02:19.9]} 39. Rxe6 {[%clk 0:02:31.1]} 39... Kc4 {[%clk 0:02:05.5]} 40. Rd6
{[%clk 0:02:29.5]} 40... Kb3 {[%clk 0:01:57.8]} 41. e6 {[%clk 0:02:19.2]} 41...
Kxb2 {[%clk 0:01:56.3]} 42. e7 {[%clk 0:02:17.9]} 42... Re3 {[%clk 0:01:54.2]}
43. Kf6 {[%clk 0:02:16.4]} 43... Kc2 {[%clk 0:01:51.2]} 44. Kf7 {[%clk
0:02:15.3]} 44... Rxe7+ {[%clk 0:01:48.2]} 45. Kxe7 {[%clk 0:02:10.7]} 45... d2
{[%clk 0:01:46.3]} 46. Kd7 {[%clk 0:02:08.6]} 46... d1=Q {[%clk 0:01:43.9]} 47.
Kc6 {[%clk 0:02:07]} 47... Qxd6+ {[%clk 0:01:42.1]} 48. Kxd6 {[%clk 0:02:06.3]}
48... b3 {[%clk 0:01:41.2]} 0-1

[Event "Live Chess"]
[Site "Chess.com"]
[Date "2023.05.21"]
[Round "-"]
[White "HonestJoe1"]
[Black "MJMykh"]
[Result "1-0"]
[WhiteElo "2089"]
[BlackElo "1162"]
[TimeControl "300"]
[EndTime "6:51:23 PDT"]
[Termination "HonestJoe1 won by resignation"]

1. d4 {[%clk 0:04:57.4]} 1... d5 {[%clk 0:04:58]} 2. Nf3 {[%clk 0:04:55.9]} 2...
Nc6 {[%clk 0:04:56.2]} 3. c3 {[%clk 0:04:53.9]} 3... h6 {[%clk 0:04:54.1]} 4. g3
{[%clk 0:04:52.5]} 4... Nf6 {[%clk 0:04:51.8]} 5. Bg2 {[%clk 0:04:51.6]} 5...
Bg4 {[%clk 0:04:51.1]} 6. O-O {[%clk 0:04:51.2]} 6... Bxf3 {[%clk 0:04:50.6]} 7.
Bxf3 {[%clk 0:04:50.3]} 7... e6 {[%clk 0:04:50.3]} 8. Qb3 {[%clk 0:04:49.2]}
8... Rb8 {[%clk 0:04:46.9]} 9. Nd2 {[%clk 0:04:46.5]} 9... a6 {[%clk 0:04:46.2]}
10. e4 {[%clk 0:04:44.7]} 10... dxe4 {[%clk 0:04:44.3]} 11. Nxe4 {[%clk
0:04:43.9]} 11... Nxe4 {[%clk 0:04:43.7]} 12. Bxe4 {[%clk 0:04:43.2]} 12... Bd6
{[%clk 0:04:42.9]} 13. Bxc6+ {[%clk 0:04:40.8]} 13... bxc6 {[%clk 0:04:40.6]}
14. Qc4 {[%clk 0:04:33.7]} 14... Rb6 {[%clk 0:04:35]} 15. Be3 {[%clk 0:04:25.5]}
15... a5 {[%clk 0:04:27.8]} 16. d5 {[%clk 0:04:22.5]} 16... cxd5 {[%clk
0:04:21.9]} 17. Qa4+ {[%clk 0:04:18.6]} 1-0

[Event "Live Chess"]
[Site "Chess.com"]
[Date "2023.05.21"]
[Round "-"]
[White "mattihelenius2"]
[Black "AMCWAML"]
[Result "0-1"]
[WhiteElo "490"]
[BlackElo "2265"]
[TimeControl "300"]
[EndTime "6:51:43 PDT"]
[Termination "AMCWAML won by checkmate"]

1. d4 {[%clk 0:04:58.2]} 1... Nf6 {[%clk 0:04:58.4]} 2. c4 {[%clk 0:04:57.5]}
2... e6 {[%clk 0:04:58.3]} 3. Nc3 {[%clk 0:04:55.6]} 3... c5 {[%clk 0:04:58.2]}
4. e4 {[%clk 0:04:52.6]} 4... cxd4 {[%clk 0:04:54.9]} 5. Qd3 {[%clk 0:04:50.8]}
5... Nc6 {[%clk 0:04:54.8]} 6. Nb5 {[%clk 0:04:45.6]} 6... Bc5 {[%clk
0:04:47.5]} 7. Nd6+ {[%clk 0:04:38.3]} 7... Bxd6 {[%clk 0:04:46]} 8. c5 {[%clk
0:04:36.4]} 8... Bxc5 {[%clk 0:04:44.7]} 9. Qc4 {[%clk 0:04:33.2]} 9... d6
{[%clk 0:04:36.9]} 10. e5 {[%clk 0:04:28.3]} 10... Nxe5 {[%clk 0:04:32.7]} 11.
Qb5+ {[%clk 0:04:21.9]} 11... Bd7 {[%clk 0:04:28.3]} 12. Qxb7 {[%clk 0:04:20.8]}
12... Rb8 {[%clk 0:04:24.2]} 13. Qa6 {[%clk 0:03:58.8]} 13... Bb4+ {[%clk
0:04:05.5]} 14. Bd2 {[%clk 0:03:54.4]} 14... Bxd2+ {[%clk 0:04:03.9]} 15. Kxd2
{[%clk 0:03:53.2]} 15... Rxb2+ {[%clk 0:04:03.4]} 16. Kd1 {[%clk 0:03:48.9]}
16... Ne4 {[%clk 0:03:56.8]} 17. Nf3 {[%clk 0:03:47]} 17... Nxf2+ {[%clk
0:03:47.5]} 18. Ke1 {[%clk 0:03:44.8]} 18... Nxf3+ {[%clk 0:03:37.3]} 19. gxf3
{[%clk 0:03:28.7]} 19... Qg5 {[%clk 0:03:35.4]} 20. Qxd6 {[%clk 0:03:23.4]}
20... Qd2# {[%clk 0:03:32.4]} 0-1

[Event "Live Chess"]
[Site "Chess.com"]
[Date "2023.05.21"]
[Round "-"]
[White "JoRoSaR"]
[Black "EdenHazard8"]
[Result "1-0"]
[WhiteElo "1678"]
[BlackElo "1979"]
[TimeControl "300"]
[EndTime "6:51:49 PDT"]
[Termination "JoRoSaR won on time"]

1. e4 {[%clk 0:04:57.4]} 1... c6 {[%clk 0:04:58.7]} 2. d4 {[%clk 0:04:56.6]}
2... d5 {[%clk 0:04:58.6]} 3. exd5 {[%clk 0:04:56.4]} 3... cxd5 {[%clk
0:04:58.5]} 4. Bd3 {[%clk 0:04:56]} 4... Nc6 {[%clk 0:04:57.6]} 5. c3 {[%clk
0:04:55.6]} 5... Qc7 {[%clk 0:04:57.2]} 6. Ne2 {[%clk 0:04:54.1]} 6... Bg4
{[%clk 0:04:56.1]} 7. O-O {[%clk 0:04:51.6]} 7... e6 {[%clk 0:04:54.3]} 8. Nd2
{[%clk 0:04:47.7]} 8... Bd6 {[%clk 0:04:52.7]} 9. g3 {[%clk 0:04:45.9]} 9... h5
{[%clk 0:04:51.2]} 10. Re1 {[%clk 0:04:43.6]} 10... h4 {[%clk 0:04:49.2]} 11.
Nf1 {[%clk 0:04:42.3]} 11... hxg3 {[%clk 0:04:47.2]} 12. fxg3 {[%clk 0:04:40.9]}
12... Nf6 {[%clk 0:04:45.2]} 13. Bg5 {[%clk 0:04:39.4]} 13... O-O-O {[%clk
0:04:41.9]} 14. b4 {[%clk 0:04:37.4]} 14... Rh5 {[%clk 0:04:38.6]} 15. Qd2
{[%clk 0:04:28]} 15... Rdh8 {[%clk 0:04:34.8]} 16. Bf4 {[%clk 0:04:25.9]} 16...
Bxe2 {[%clk 0:04:27.8]} 17. Bxd6 {[%clk 0:04:22.3]} 17... Qxd6 {[%clk
0:04:25.8]} 18. Rxe2 {[%clk 0:04:21.7]} 18... Ng4 {[%clk 0:04:14]} 19. a4 {[%clk
0:04:14.4]} 19... Nxh2 {[%clk 0:04:02.9]} 20. Rxh2 {[%clk 0:04:11.4]} 20... Rxh2
{[%clk 0:03:57.8]} 21. Nxh2 {[%clk 0:04:10.9]} 21... Qxg3+ {[%clk 0:03:56.4]}
22. Qg2 {[%clk 0:04:10.6]} 22... Qxd3 {[%clk 0:03:53.9]} 23. Qxg7 {[%clk
0:04:09.7]} 23... Rh3 {[%clk 0:03:38.2]} 24. Qf8+ {[%clk 0:04:06.3]} 24... Nd8
{[%clk 0:03:35.7]} 25. Qc5+ {[%clk 0:04:04.1]} 25... Nc6 {[%clk 0:03:31]} 26.
Qf8+ {[%clk 0:04:03.2]} 26... Kd7 {[%clk 0:03:25.9]} 27. Qxf7+ {[%clk
0:04:02.4]} 27... Ne7 {[%clk 0:03:24.9]} 28. Re1 {[%clk 0:03:44.7]} 28... Qg3+
{[%clk 0:03:16.1]} 29. Kf1 {[%clk 0:03:43.9]} 29... Qd3+ {[%clk 0:03:04.5]} 30.
Kg1 {[%clk 0:03:40]} 30... Qg6+ {[%clk 0:02:59.6]} 31. Qxg6 {[%clk 0:03:37.2]}
31... Nxg6 {[%clk 0:02:59.5]} 32. Kg2 {[%clk 0:03:36.6]} 32... Rxc3 {[%clk
0:02:58.2]} 33. Nf3 {[%clk 0:03:33.9]} 33... Nf4+ {[%clk 0:02:56.1]} 34. Kg3
{[%clk 0:03:32.5]} 34... Nd3 {[%clk 0:02:52.2]} 35. Re3 {[%clk 0:03:27.8]} 35...
Rb3 {[%clk 0:02:30.4]} 36. Nd2 {[%clk 0:03:23.4]} 36... Rxb4 {[%clk 0:02:25.3]}
37. Rxd3 {[%clk 0:03:22.1]} 37... Rxa4 {[%clk 0:02:25.2]} 38. Kf4 {[%clk
0:03:21]} 38... Kd6 {[%clk 0:02:21.8]} 39. Nf3 {[%clk 0:03:16.9]} 39... b5
{[%clk 0:02:13.4]} 40. Ne5 {[%clk 0:03:15.2]} 40... b4 {[%clk 0:02:09]} 41. Rb3
{[%clk 0:03:13.7]} 41... a5 {[%clk 0:02:07.3]} 42. Ke3 {[%clk 0:03:13.1]} 42...
Ra3 {[%clk 0:02:00.3]} 43. Rd3 {[%clk 0:03:11.6]} 43... a4 {[%clk 0:01:42.7]}
44. Kd2 {[%clk 0:03:10.4]} 44... Ra2+ {[%clk 0:01:40.8]} 45. Kc1 {[%clk
0:03:08.7]} 45... b3 {[%clk 0:01:39.3]} 46. Kb1 {[%clk 0:03:08.1]} 46... Rh2
{[%clk 0:01:35.8]} 47. Nf7+ {[%clk 0:03:00.2]} 47... Ke7 {[%clk 0:01:31.6]} 48.
Ng5 {[%clk 0:02:59.4]} 48... Kd6 {[%clk 0:01:09.6]} 49. Re3 {[%clk 0:02:57.9]}
49... Kc7 {[%clk 0:01:05.5]} 50. Nxe6+ {[%clk 0:02:55]} 50... Kb6 {[%clk
0:01:04.5]} 51. Nc5 {[%clk 0:02:54.4]} 51... Kb5 {[%clk 0:01:03.1]} 52. Rc3
{[%clk 0:02:46]} 52... Kb4 {[%clk 0:01:00.8]} 53. Rc1 {[%clk 0:02:45.3]} 53...
a3 {[%clk 0:00:51]} 54. Nd3+ {[%clk 0:02:43.4]} 54... Ka4 {[%clk 0:00:46]} 55.
Nc5+ {[%clk 0:02:41.9]} 55... Kb4 {[%clk 0:00:39.5]} 56. Nd3+ {[%clk 0:02:39.9]}
56... Ka5 {[%clk 0:00:38.7]} 57. Rc5+ {[%clk 0:02:37.2]} 57... Kb6 {[%clk
0:00:36.5]} 58. Rc3 {[%clk 0:02:36]} 58... a2+ {[%clk 0:00:31.1]} 59. Ka1 {[%clk
0:02:33.2]} 59... Rh1+ {[%clk 0:00:30.1]} 60. Nc1 {[%clk 0:02:31.3]} 60... Ka5
{[%clk 0:00:21.5]} 61. Rxb3 {[%clk 0:02:30.4]} 61... Rxc1+ {[%clk 0:00:19.3]}
62. Kb2 {[%clk 0:02:26.8]} 62... Rc4 {[%clk 0:00:19.2]} 63. Ra3+ {[%clk
0:02:25.3]} 63... Kb5 {[%clk 0:00:17.8]} 64. Rxa2 {[%clk 0:02:24.9]} 64... Rxd4
{[%clk 0:00:16.9]} 65. Kc3 {[%clk 0:02:23.8]} 65... Rh4 {[%clk 0:00:15.6]} 66.
Kd3 {[%clk 0:02:21.1]} 66... Kc5 {[%clk 0:00:14.6]} 67. Rc2+ {[%clk 0:02:20.1]}
67... Kd6 {[%clk 0:00:13.5]} 68. Rg2 {[%clk 0:02:18.7]} 68... Rh3+ {[%clk
0:00:10.5]} 69. Kd4 {[%clk 0:02:18.1]} 69... Rh4+ {[%clk 0:00:10.4]} 70. Ke3
{[%clk 0:02:16.9]} 70... Rh3+ {[%clk 0:00:09.7]} 71. Kf4 {[%clk 0:02:16.4]}
71... d4 {[%clk 0:00:09]} 72. Rg6+ {[%clk 0:02:15.3]} 72... Kc5 {[%clk
0:00:08.2]} 73. Rg5+ {[%clk 0:02:15.2]} 73... Kc4 {[%clk 0:00:07.6]} 74. Ke4
{[%clk 0:02:14.9]} 74... d3 {[%clk 0:00:05.8]} 75. Rg8 {[%clk 0:02:14.6]} 75...
Rh4+ {[%clk 0:00:05.3]} 76. Ke3 {[%clk 0:02:13.5]} 76... Rh3+ {[%clk 0:00:04.8]}
77. Kd2 {[%clk 0:02:12.5]} 77... Rh2+ {[%clk 0:00:04.2]} 78. Ke3 {[%clk
0:02:12.2]} 78... d2 {[%clk 0:00:04.1]} 79. Rc8+ {[%clk 0:02:11.1]} 79... Kb3
{[%clk 0:00:03.4]} 80. Rd8 {[%clk 0:02:09.2]} 80... Kc2 {[%clk 0:00:03.3]} 81.
Rc8+ {[%clk 0:02:08.2]} 81... Kb1 {[%clk 0:00:02.5]} 82. Rb8+ {[%clk 0:02:07.4]}
82... Kc1 {[%clk 0:00:02]} 83. Rc8+ {[%clk 0:02:07.3]} 83... Kd1 {[%clk
0:00:01.9]} 84. Kd3 {[%clk 0:02:05.9]} 84... Ke1 {[%clk 0:00:01.3]} 85. Re8+
{[%clk 0:02:04.9]} 85... Kd1 {[%clk 0:00:01.2]} 86. Rg8 {[%clk 0:02:03.2]} 86...
Rh3+ {[%clk 0:00:01.1]} 87. Kd4 {[%clk 0:02:02.3]} 87... Kc1 {[%clk 0:00:00.8]}
88. Rc8+ {[%clk 0:02:01.3]} 88... Kd1 {[%clk 0:00:00.7]} 89. Ra8 {[%clk
0:01:59.9]} 89... Rh2 {[%clk 0:00:00.6]} 90. Kd3 {[%clk 0:01:56.5]} 1-0